Cogmind - Beta 13 @@@ ROGUE MODE // 2024.05.05 @ 18:13:17 Player: Compound1080 Result: Destroyed by G-47 Trooper with Particle Gun Performance ------------- Evolutions (2) 1000 Regions Visited (5) 1000 Robots Destroyed (21) 105 Value Destroyed (352) 352 Prototype IDs (0) 0 Alien Tech Used (0) 0 Bonus (200) 200 TOTAL SCORE: 2657 Bonus ------- Entered Garrisons 200 Cogmind --------- Core Integrity 0/550 Matter 261/300 Energy 100/100 System Corruption 5% Temperature Cool (9) Movement Core (50) Location -8/Garrison Parts ------- > --- POWER (1) -------- (None) > --- PROPULSION (4) --- (None) > --- UTILITY (4) ------ Visual Processing Unit Signal Interpreter > --- WEAPON (2) ------- (None) > --- INVENTORY (5) ---- Nuclear Core Aluminum Leg Improved Terrain Scanner Hacking Suite Stasis Trap (100%) Peak State ------------ > --- POWER ------------ Ion Engine > --- PROPULSION ------- Hover Unit Hover Unit Hover Unit > --- UTILITY ---------- Small Storage Unit Visual Processing Unit Improved Terrain Scanner > --- WEAPON ----------- Assault Rifle Light Assault Rifle > --- INVENTORY -------- Ion Engine Aluminum Leg Hover Unit Signal Interpreter Assault Rifle Grenade Launcher [Rating: 12] Favorites ----------- Power Light Ion Engine Engine Light Ion Engine Propulsion Hover Unit Leg Aluminum Leg Hover Unit Hover Unit Flight Unit Flight Unit Utility Small Storage Unit Device Sensor Array Storage Small Storage Unit Processor Visual Processing Unit Weapon Mining Claw Ballistic Gun Assault Rifle Launcher Rocket Launcher Slashing Weapon Mining Claw Build | -11 -10 -9 -9 -8 -8 ------- Run | Yrd Mat Mat Min Mat Gar Slots Evolved 4 | . . 2 . 2 . Power . | . . . . . . Propulsion 2 | . . 1 . 1 . Utility 2 | . . 1 . 1 . Weapon . | . . . . . . Parts Attached 24 | 6 3 8 . 5 2 Power 4 | 1 1 1 . 1 . Engine 4 | 1 1 1 . 1 . Core . | . . . . . . Reactor . | . . . . . . Propulsion 10 | 2 1 4 . 3 . Treads . | . . . . . . Leg 3 | 2 1 . . . . Wheel . | . . . . . . Hover 5 | . . 4 . 1 . Flight 2 | . . . . 2 . Utility 5 | 1 1 2 . 1 . Device 2 | . . 1 . 1 . Storage 1 | 1 . . . . . Processor 2 | . 1 1 . . . Hackware . | . . . . . . Protection . | . . . . . . Artifact . | . . . . . . Weapon 5 | 2 . 1 . . 2 Energy Gun . | . . . . . . Energy Cannon . | . . . . . . Ballistic Gun 3 | 2 . . . . 1 Ballistic Cannon . | . . . . . . Launcher 1 | . . . . . 1 Special Weapon . | . . . . . . Impact Weapon . | . . . . . . Slashing Weapon 1 | . . 1 . . . Piercing Weapon . | . . . . . . Special Melee Weapon . | . . . . . . Unidentified Prototypes . | . . . . . . Parts Lost 16 | . . 4 . 2 10 Power 2 | . . 1 . . 1 Propulsion 7 | . . 1 . 2 4 Utility 2 | . . . . . 2 Weapon 5 | . . 2 . . 3 Highest Loss Streak 10 | . . 3 . 2 10 To Critical Strikes 1 | . . . . 1 . Average Slot Usage (%) 90 | . 91 96 88 89 63 Engine 10 | . 14 10 11 9 5 Leg 5 | . 28 . . . . Hover 18 | . . 31 33 19 11 Flight 8 | . . . . 16 10 Device 5 | . . 2 . 9 5 Storage 10 | . 14 11 11 9 7 Processor 16 | . 6 18 22 18 18 Ballistic Gun 8 | . 28 17 . . 1 Slashing Weapon 6 | . . 3 11 9 6 Naked Turns . | . . . . . . Heaviest Build 14 | 11 13 14 12 13 11 Greatest Support 24 | 20 20 18 18 24 8 Greatest Overweight (x) 3 | . 1 1 . 3 1 Average Overweight (x) . | . . . . . 1 Largest Inventory Capacity 8 | 8 8 8 8 8 8 Average Capacity 7 | 6 8 8 8 8 7 Most Carried 8 | 5 8 8 8 8 8 Average Carried 7 | 3 6 6 7 7 7 Final Capacity 8 | 8 8 8 8 8 5 Final Carried 8 | 3 8 7 8 8 5 Class Distribution -------------------- 49% | Scavenger-Assassin 24% | Scavenger-Mutant 22% | Mutant 3% | Scavenger-Scout Dominant Class ---------------- Mutant | -10/Materials Scavenger-Mutant | -9/Materials Scavenger-Mutant | -9/Mines Scavenger-Assassin | -8/Materials Scavenger-Assassin | -8/Garrison Resources | -11 -10 -9 -9 -8 -8 ----------- Run | Yrd Mat Mat Min Mat Gar Matter Collected 507 | 251 98 138 . 20 . Remotely . | . . . . . . Salvage Created 535 | . 161 284 . 45 45 Parts 46 | . 17 21 . 4 4 Haulers Intercepted . | . . . . . . Recyclers Shooed . | . . . . . . Parts Field Recycled . | . . . . . . Retrieved Matter . | . . . . . . Parts Self-Destructed . | . . . . . . Prevented . | . . . . . . Kills | -11 -10 -9 -9 -8 -8 ------- Run | Yrd Mat Mat Min Mat Gar Combat Hostiles Destroyed 16 | . 4 8 . 3 1 Melee 6 | . . 3 . 3 . Guns 9 | . 4 5 . . . AOE 1 | . . . . . 1 Classes Destroyed 5 | . 4 1 . . . Recycler 1 | . . 1 . . . Operator 1 | . 1 . . . . Watcher 3 | . 2 1 . . . Swarmer 12 | . 3 6 . 3 . Grunt 4 | . 1 2 . . 1 Best Kill Streak 4 | . 4 3 . 3 1 Combat Bots Only 3 | . 2 3 . 3 1 Max Kills in Single Turn 1 | . 1 1 . 1 1 Gunslinging . | . . . . . . Exploded 1 | . . . . . 1 Melee 1 | . . 1 . 1 . Uniques/NPCs Destroyed . | . . . . . . Combat | -11 -10 -9 -9 -8 -8 -------- Run | Yrd Mat Mat Min Mat Gar Hostile Shots Fired 165 | . 24 47 . 19 75 Missed 35 | . 7 12 . 1 15 Damage Taken 1671 | . 144 408 . 150 969 Core 690 | . 32 99 . 69 490 Absorbed by Shields . | . . . . . . Core Remaining (%) 87 | 100 87 . 75 . . Volleys Fired 43 | . 16 20 . . 7 Largest 2 | . 2 2 . . 1 Hottest 40 | . 40 40 . . 33 Shots Fired 72 | . 32 33 . . 7 Gun 71 | . 32 33 . . 6 Cannon . | . . . . . . Launcher 1 | . . . . . 1 Special . | . . . . . . Kinetic 71 | . 32 33 . . 6 Thermal . | . . . . . . Explosive 1 | . . . . . 1 Electromagnetic . | . . . . . . Robot Hit Streak 9 | . 5 5 . . 9 Robot Miss Streak 4 | . 3 4 . . 1 Penetration Max . | . . . . . . Secondary Targets 1 | . 1 . . . . Max Gunslinging Chain 1 | . 1 . . . . Shots Hit Robots 54 | . 19 20 . 7 8 Core Hits 35 | . 11 15 . 3 6 Critical Kills . | . . . . . . Critical Parts Destroyed . | . . . . . . Critical Strikes . | . . . . . . Melee Attacks 32 | . . 12 . 16 4 Impact . | . . . . . . Slashing 32 | . . 12 . 16 4 Piercing . | . . . . . . Sneak Attacks 1 | . . . . 1 . Combat Hostiles . | . . . . . . Follow-up Attacks . | . . . . . . Damage Inflicted 901 | . 201 257 . 190 253 Guns 457 | . 197 184 . . 76 Cannons . | . . . . . . Explosions 129 | . . . . . 129 Melee 311 | . . 73 . 190 48 Ramming 4 | . 4 . . . . Kinetic 457 | . 197 184 . . 76 Thermal . | . . . . . . Explosive 129 | . . . . . 129 Electromagnetic . | . . . . . . Impact . | . . . . . . Slashing 311 | . . 73 . 190 48 Piercing . | . . . . . . Highest Corruption 5 | . . . . . 5 Average Corruption 4 | . . . . . 4 Corruption Purged . | . . . . . . Corruption Blocked . | . . . . . . Effects 1 | . . . . . 1 Matter Fused 1 | . . . . . 1 Overload Shots . | . . . . . . Overflow Damage 31 | . . . . 12 19 Projectiles . | . . . . . . Explosions 19 | . . . . . 19 Melee 12 | . . . . 12 . Knockbacks . | . . . . . . Impact . | . . . . . . Kinetic . | . . . . . . Secondary . | . . . . . . Self-Inflicted Damage 41 | . . . . . 41 Shots 1 | . . . . . 1 Rammed . | . . . . . . Targets Rammed 1 | . 1 . . . . Kicked 1 | . 1 . . . . Crushed . | . . . . . . Highest Temperature 30 | . 6 12 . . 30 Average Temperature 8 | . 6 7 . . 11 Received Heat Transfer 531 | . 18 117 . . 396 Siege Activations . | . . . . . . Robots Corrupted . | . . . . . . Combat Hostiles . | . . . . . . Parts Fried . | . . . . . . Impact Corruptions . | . . . . . . Robots Melted . | . . . . . . Combat Hostiles . | . . . . . . Parts Melted . | . . . . . . Heat Transferred . | . . . . . . Parts Sabotaged . | . . . . . . Parts Stolen . | . . . . . . Parts Stripped . | . . . . . . Power Chain Reactions . | . . . . . . Alert | -11 -10 -9 -9 -8 -8 ------- Run | Yrd Mat Mat Min Mat Gar Peak Influence 299 | . 254 299 5 70 9 Initial 22 | . . 22 5 1 9 Average 55 | . 103 132 5 20 5 Maximum Alert Level 1 | . 1 1 . . . Low Security (%) 90 | 100 69 81 100 100 100 Level 1 9 | . 30 18 . . . Level 2 . | . . . . . . Level 3 . | . . . . . . Level 4 . | . . . . . . Level 5 . | . . . . . . High Security . | . . . . . . Max Security . | . . . . . . Squads Dispatched 7 | . 2 2 1 2 . Investigation 4 | . . 2 1 1 . Extermination . | . . . . . . Reinforcement 3 | . 2 . . 1 . Assault . | . . . . . . Garrison . | . . . . . . Intercept . | . . . . . . Searches Triggered . | . . . . . . Construction Impeded . | . . . . . . Haulers Reinforced . | . . . . . . Active Scanning Responses . | . . . . . . Cargo Convoy Interrupts . | . . . . . . Stealth | -11 -10 -9 -9 -8 -8 --------- Run | Yrd Mat Mat Min Mat Gar Distress Signals 2 | . 1 1 . . . Communications Jammed . | . . . . . . Distress Signals . | . . . . . . Times Spotted 44 | . 12 22 1 5 4 Peak Tracking Total 7 | . 5 7 1 3 4 Tactical Retreats 4 | . 2 2 . . . Traps | -11 -10 -9 -9 -8 -8 ------- Run | Yrd Mat Mat Min Mat Gar Traps Triggered . | . . . . . . Indirectly . | . . . . . . Trap Hack Attempts . | . . . . . . Triggered . | . . . . . . Disarmed . | . . . . . . Reprogrammed . | . . . . . . Reused . | . . . . . . Traps Extracted . | . . . . . . Installed . | . . . . . . Triggered . | . . . . . . Most Traps Carried 1 | . . . 1 1 1 Machines | -11 -10 -9 -9 -8 -8 ---------- Run | Yrd Mat Mat Min Mat Gar Machines Disabled . | . . . . . . Max in Single Turn . | . . . . . . Machines Repaired . | . . . . . . Machines Dismantled . | . . . . . . Machines Sabotaged . | . . . . . . Overloaded Fab Kills . | . . . . . . Hacking | -11 -10 -9 -9 -8 -8 --------- Run | Yrd Mat Mat Min Mat Gar Machines Accessed 11 | . . 6 1 3 1 Terminals 9 | . . 6 . 2 1 Fabricators . | . . . . . . Repair Stations . | . . . . . . Recycling Units . | . . . . . . Scanalyzers . | . . . . . . Garrison Access 1 | . . . . 1 . Total Hacks 29 | . . 16 1 10 2 Successful 11 | . . 6 1 4 . Failed 18 | . . 10 . 6 2 Catastrophic 3 | . . 1 . 2 . Database Lockouts . | . . . . . . Manual 6 | . . 2 . 4 . Terminals 27 | . . 16 . 9 2 Fabricators . | . . . . . . Repair Stations . | . . . . . . Recycling Units . | . . . . . . Scanalyzers . | . . . . . . Garrison Access 1 | . . . . 1 . Terminal Hacks 10 | . . 6 1 3 . Robot Analysis 1 | . . 1 . . . Open Door 1 | . . . 1 . . Alert Level 1 | . . 1 . . . Unreport Threat 1 | . . 1 . . . Locate Traps 2 | . . . . 2 . Patrol Status 1 | . . 1 . . . Zone Layout 3 | . . 2 . 1 . Fabricator Hacks . | . . . . . . Repair Station Hacks . | . . . . . . Recycling Unit Hacks . | . . . . . . Scanalyzer . | . . . . . . Garrison Access Hacks 1 | . . . . 1 . Unlock Access 1 | . . . . 1 . Unauthorized Hacks . | . . . . . . Terminals . | . . . . . . Fabricators . | . . . . . . Repair Stations . | . . . . . . Recycling Units . | . . . . . . Scanalyzers . | . . . . . . Garrison Access . | . . . . . . Data Cores Recovered . | . . . . . . Used . | . . . . . . Hacking Detections 8 | . . 5 . 2 1 Full Trace Events 3 | . . 2 . 1 . Feedback Events . | . . . . . . Feedback Blocked . | . . . . . . Robot Schematics Acquired . | . . . . . . Robots Built . | . . . . . . Authchips . | . . . . . . Time . | . . . . . . Total Robot Build Rating . | . . . . . . Part Schematics Acquired . | . . . . . . Parts Built . | . . . . . . Authchips . | . . . . . . Time . | . . . . . . Total Part Build Rating . | . . . . . . Parts Repaired . | . . . . . . Time . | . . . . . . Parts Recycled . | . . . . . . Recycled Matter . | . . . . . . Retrieved Matter . | . . . . . . Retrieved Components . | . . . . . . Parts Scanalyzed . | . . . . . . Part Schematics Acquired . | . . . . . . Parts Damaged . | . . . . . . Bothacking | -11 -10 -9 -9 -8 -8 ------------ Run | Yrd Mat Mat Min Mat Gar Used RIF Installer . | . . . . . . Robots Hacked . | . . . . . . Non-combat . | . . . . . . Combat . | . . . . . . Robot Hacks Applied . | . . . . . . Relay Couplers Released . | . . . . . . Fabnet Peak Effective % . | . . . . . . Robots Rewired . | . . . . . . Allies Hacked . | . . . . . . Hacks Repelled . | . . . . . . Allies | -11 -10 -9 -9 -8 -8 -------- Run | Yrd Mat Mat Min Mat Gar Total Allies . | . . . . . . Largest Group . | . . . . . . Highest-Rated Group . | . . . . . . Highest-Rated Ally . | . . . . . . Total Orders . | . . . . . . Ally Attacks . | . . . . . . Total Damage . | . . . . . . Kills . | . . . . . . Allies Corrupted . | . . . . . . Allies Melted . | . . . . . . Intel | -11 -10 -9 -9 -8 -8 ------- Run | Yrd Mat Mat Min Mat Gar Robot Analysis Total 1 | . . 1 . . . Derelict Logs Recovered . | . . . . . . Drone Launches . | . . . . . . Drone Recoveries . | . . . . . . Exploration | -11 -10 -9 -9 -8 -8 ------------- Run | Yrd Mat Mat Min Mat Gar Turns Passed 2162 | 58 404 415 92 1100 93 Spaces Moved 1167 | 43 280 400 172 231 41 Core 12 | 12 . . . . . Treads . | . . . . . . Legs 311 | 31 280 . . . . Wheels . | . . . . . . Hover 670 | . . 400 172 98 . Flight 174 | . . . . 133 41 Fastest Speed 48 | 50 120 52 52 48 117 Average Speed 81 | 100 120 55 52 90 117 Slowest Speed 280 | 120 190 116 52 280 117 Overloaded Moves . | . . . . . . Propulsion Burnouts . | . . . . . . Robots Hopped . | . . . . . . Cave-ins Triggered . | . . . . . . Exploration Rate (%) 28 | 3 50 48 28 26 13 Regions Visited 5 Branch Regions 1 Pre-discovered Areas 1 | . . . 1 . . Known Exits Taken 3 | . . 1 1 1 . Unknown Exits Taken 2 | 1 1 . . . . Scrap Searched . | . . . . . . Spaces Dug 11 | . . 8 . 3 . Terrain Destroyed 17 | . . 8 . 3 6 Melee 11 | . . 8 . 3 . Projectile . | . . . . . . AOE 6 | . . . . . 6 Terrain Rammed . | . . . . . . Walls Destroyed . | . . . . . . Machines Disabled . | . . . . . . Actions | -11 -10 -9 -9 -8 -8 --------- Run | Yrd Mat Mat Min Mat Gar Total 2247 | 57 320 537 174 1088 71 Wait 940 | . . 91 . 832 17 Move 1163 | 42 279 399 171 231 41 Hop . | . . . . . . Pick Up 30 | 8 13 4 2 3 . Fast Attach 6 | 2 1 1 . 2 . Attach 16 | 4 1 7 . 2 2 Detach 2 | . . 2 . . . Swap 2 | . 1 . . 1 . Drop 12 | 1 8 1 1 1 . Fire 43 | . 16 20 . . 7 Melee 32 | . . 12 . 16 4 Ram . | . . . . . . Kick 1 | . 1 . . . . Crush . | . . . . . . Escape Stasis . | . . . . . . Rewire . | . . . . . . Trap . | . . . . . . Miscellaneous . | . . . . . . Route ------- -11/Scrapyard -10/Materials (discovered 2 exits: *Mat / [*Min]) -9/Materials (discovered 3 exits: *Min x2 / *Sto) -9/Mines -8/Materials -8/Garrison History --------- Turn | Location | Event 22 | -11/Scrapyard | Discovered new exit (range 14) 59 | -11/Scrapyard | Entered Materials 313 | -10/Materials | Build established: Mutant 349 | -10/Materials | Discovered new exit (range 18) 403 | -10/Materials | Discovered new exit (range 18) 463 | -10/Materials | Entered another Materials area 463 | -9/Materials | Evolved 2 slots: Propulsion x1, Utility x1 512 | -9/Materials | Discovered new exit (range 16) 535 | -9/Materials | Discovered new exit (range 10) 594 | -9/Materials | Identified exit to Storage 727 | -9/Materials | Discovered new exit (range 5) 732 | -9/Materials | Identified exit to Mines 747 | -9/Materials | Build established: Scavenger-Mutant 878 | -9/Materials | Entered Mines 885 | -9/Mines | Received a Rocket Launcher from a helpful Derelict 887 | -9/Mines | Met a Derelict bent on vengeance 887 | -9/Mines | Lost 3 parts (1p1n1w) 918 | -9/Mines | Found a hidden stash of uninstalled traps 931 | -9/Mines | Learned location of Storage (-9) 963 | -9/Mines | Discovered new exit (range 10) 968 | -9/Mines | Met a Derelict shopkeep closing up shop 969 | -9/Mines | Identified exit to Materials 970 | -9/Mines | Entered Materials 970 | -8/Materials | Evolved 2 slots: Propulsion x1, Utility x1 1353 | -8/Materials | Build established: Scavenger-Assassin 2070 | -8/Materials | Identified exit to Garrison 2070 | -8/Materials | Entered Garrison 2120 | -8/Garrison | Triggered checkpoint 2150 | -8/Garrison | Core integrity fell below 50% 2158 | -8/Garrison | Core integrity fell below 20% 2163 | -8/Garrison | Destroyed by G-47 Trooper with Particle Gun Last Messages --------------- 02086_ Connecting with Garrison Terminal... 02120_ Beams of light sweep through the air. An alarm sounds. 02122_ Sensor Array destroyed. 02124_ Hover Unit destroyed. 02127_ Flight Unit destroyed. 02129_ Lgt. Ion Engine destroyed. 02131_ Hover Unit destroyed. 02133_ Critical hit (Burn: +37). 02133_ G-47 Trooper destroyed. 02133_ Mining Claw destroyed. 02133_ Destroyed Mining Claw. 02133_ Rocket Launcher destroyed. 02133_ Destroyed Rocket Launcher. 02139_ System corrupted: Matter fused (-10). 02142_ Destroyed Shock Rifle. 02143_ The unstable cave ceiling collapses. 02147_ Sml. Storage Unit destroyed. 02147_ Assault Rifle destroyed. 02151_ Critical hit (Burn: +37). Map ----- +----------------------------------------------------+ | ?????????????????????????????????????????????????? | | ?????????????????????????????????????????????????? | | ?????????????????????????????????????????????????? | | ?????????????????????????????????????????????????? | | ?????????????????????????????????????????????????? | | ?????????????????????????????????????????????????? | | ?????????????????????????????????????????????????? | | ?????????????????????????????????????????????????? | | ?????????????????????????????????????????????????? | | ?????????????????????????????????????????????????? | | ???????????????????#######???????????????????????? | | ???????????????????#""" "???????????????????????? | | ????????????????????"" ???????????????????????? | | ????????????????????" "???????????????????????? | | ????????????????????? ###?????????????????????? | | ?????????????????????" """?????????????????????? | | ?????????????????????? ??????????????????????? | | ?????????????????????? ??????????????????????? | | ??????????????????????? ???????????????????????? | | ??????????????????????? ???????????????????????? | | ???????????????????????# #???????????????????????? | | ???????????????????????# #???????????????????????? | | ???????????????????????# ###?????????????????????? | | ???????????????????????# # #?????????????????????? | | ???????????????????????#p # ##### ##????????? | | ???????????????????????# @ g[ #????????? | | ???????????????????????# g%* #????????? | | ???????????????????????# ## ###########????????? | | ????????#####??????????# #####??????????????????? | | ????????# #??????????# #??????????????????????? | | ????????# ############ ##########?????????????? | | ????????# ^ ???????? | | ????????# ???????? | | ????????# ???????? | | ????????############ ###################?????????? | | ???????????????????# ##??????????????????????????? | | ???????????????????# "#??????????????????????????? | | ???????????????????# T#??????????????????????????? | | ???????????????????#""#??????????????????????????? | | ???????????????????####??????????????????????????? | | ?????????????????????????????????????????????????? | | ?????????????????????????????????????????????????? | | ?????????????????????????????????????????????????? | | ?????????????????????????????????????????????????? | | ?????????????????????????????????????????????????? | | ?????????????????????????????????????????????????? | | ?????????????????????????????????????????????????? | | ?????????????????????????????????????????????????? | | ?????????????????????????????????????????????????? | | ?????????????????????????????????????????????????? | +----------------------------------------------------+ Best States ------------- Heat Dissipation 31 Energy Generation 10 Energy Capacity 250 Matter Stores 300 Matter Capacity 300 Sight Range 18 Robot Scan Range 14 Terrain Scan Range 16 Terrain Scan Density 10 Evasion (%) 55 Item Schematics ----------------- None Robot Schematics ------------------ None Fabricated ------------ Nothing Alien Tech Used ----------------- None Achievements -------------- None Challenges ------------ None Game ------ Seed TransportWarpNanovents Manual? 0 Play Time 00:29:08 Cumulative 7.6 hours Start 2024.05.05 @ 15:19:15 End 2024.05.05 @ 18:13:17 Sessions 2 Manual Loads 0 Difficulty Rogue Special Mode None Game No. 16 Rogue 16 Adventurer 0 Explorer 0 Win Type - Total 0 Types 0/0/0/0/0/0/0/0/0 Lore% 13 Gallery% 11 Achievement% 10 Wizard Run 0 Options --------- Layout 1 ASCII 0 Keyboard 0 Movement Mouse Keybinds 0 Fullscreen 2 Font 24/Smallcaps Map View 50x35 Zoom Use 0% Tactical HUD 1 Map Filters NONE Filters NONE Steam 1 RUN: a9529523-631d-482d-8b7c-28e2c44afd99